bitfinex-derivatives/quotes_BTCF0:USTF0_20250106
["timestamp","ask_amount","ask_price","bid_price","bid_amount"]
[1736141425952,0.36220001,99749.0,99740.0,0.2261311]
[1736141425953,0.00140001,99749.0,99740.0,0.2261311]
[1736141426254,0.045114,99782.0,99755.0,0.045126]
[1736141426551,0.32146137,99756.0,99755.0,0.405926]
[1736141427048,0.00150428,99785.0,99764.0,0.045122]
[1736141427253,0.00150428,99785.0,99764.0,0.405922]
[1736141428255,0.22914082,99765.0,99764.0,0.405922]
[1736141428547,0.00150428,99785.0,99779.0,0.045115]
[1736141428744,0.00150428,99785.0,99783.0,0.3608]
[1736141429137,0.045109,99794.0,99783.0,0.3608]
[1736141429338,0.21051015,99796.0,99783.0,0.3608]
[1736141429339,0.21051015,99796.0,99793.0,0.3608]
[1736141430154,0.045106,99799.0,99793.0,0.3608]
[1736141430850,0.06400149,99799.0,99793.0,0.3608]
[1736141431651,0.06400149,99799.0,99793.0,0.3618]
[1736141432046,0.06400149,99799.0,99793.0,0.3628]
[1736141432542,0.045107,99798.0,99769.0,0.405919]
[1736141432745,0.09647318,99790.0,99770.0,0.09647318]
[1736141433052,0.045111,99789.0,99773.0,0.045117]
[1736141433554,0.045111,99789.0,99779.0,0.09647318]
[1736141433748,0.0369,99798.0,99773.0,0.045117]
[1736141433749,0.045111,99788.0,99773.0,0.045117]
[1736141434057,0.045111,99788.0,99778.0,0.09647318]
[1736141434648,0.045111,99788.0,99779.0,0.001]
[1736141435049,0.0379,99798.0,99778.0,0.09647318]
[1736141435356,0.11940762,99780.0,99778.0,0.09747318]
[1736141435658,0.11940762,99780.0,99778.0,0.001]
[1736141435860,0.11940762,99780.0,99779.0,0.001]
[1736141436760,0.11940762,99782.0,99779.0,0.001]
[1736141436955,0.11940762,99782.0,99780.0,1.5]
[1736141437456,0.11940762,99782.0,99778.0,0.047115]
[1736141437859,0.11940762,99782.0,99778.0,0.046115]
[1736141438063,0.11940762,99782.0,99779.0,1.501]
[1736141438252,0.08950394,99781.0,99779.0,1.501]
[1736141438559,0.001,99780.0,99779.0,1.501]
[1736141439151,0.08950394,99781.0,99779.0,1.5]
[1736141439552,0.08560394,99781.0,99779.0,1.5]
[1736141439849,0.001,99782.0,99779.0,1.5]
[1736141440250,0.001,99782.0,99779.0,1.501]
[1736141440460,0.045111,99788.0,99779.0,1.501]
[1736141440763,0.001,99780.0,99779.0,1.501]
[1736141442056,0.045111,99788.0,99779.0,1.501]
[1736141442257,0.001,99782.0,99779.0,1.501]
[1736141442955,0.001,99780.0,99779.0,1.501]
[1736141443968,0.001,99782.0,99779.0,1.501]
[1736141444170,0.001,99782.0,99779.0,1.5]
[1736141444355,0.001,99782.0,99779.0,1.546115]
[1736141444766,0.001,99782.0,99779.0,1.545115]
[1736141445062,0.001,99782.0,99780.0,0.045114]
[1736141445462,0.045111,99788.0,99780.0,0.045114]
[1736141445658,0.10646832,99796.0,99780.0,0.045114]
[1736141446059,0.045111,99788.0,99780.0,0.045114]
[1736141446260,0.001,99782.0,99780.0,0.045114]
[1736141447061,0.01957648,99796.0,99790.0,0.04511]
[1736141447368,0.001,99796.0,99790.0,0.04511]
[1736141447663,0.001,99796.0,99791.0,1.5]
[1736141447860,0.001,99796.0,99790.0,0.04511]
[1736141448569,0.19647318,99800.0,99790.0,0.04511]
[1736141448570,0.05630852,99799.0,99790.0,0.04511]
[1736141448771,0.05630852,99799.0,99790.0,0.04611]
[1736141449463,0.001,99796.0,99790.0,0.04611]
[1736141450165,0.1,99800.0,99790.0,0.04611]
[1736141450166,0.001,99799.0,99790.0,0.04711]
[1736141450953,0.001,99799.0,99790.0,0.04611]
[1736141451161,0.001,99799.0,99790.0,0.002]
[1736141451362,0.001,99799.0,99797.0,0.045107]
[1736141451761,0.1,99800.0,99797.0,0.045107]
[1736141452674,0.1,99800.0,99799.0,0.045106]
[1736141453263,0.1,99800.0,99799.0,1.545106]
[1736141453866,0.1,99800.0,99799.0,1.905906]
[1736141454067,0.1,99800.0,99799.0,1.906906]
[1736141454272,0.14874452,99800.0,99799.0,1.906906]
[1736141454659,0.14974452,99800.0,99799.0,1.906906]
[1736141455466,0.32885595,99800.0,99799.0,1.906906]
[1736141456764,0.14974452,99800.0,99799.0,1.906906]
[1736141457164,0.14974452,99800.0,99799.0,1.905906]
[1736141457368,0.14974452,99800.0,99799.0,1.906906]
[1736141458074,0.101,99800.0,99799.0,1.906906]
[1736141459174,0.14974452,99800.0,99799.0,1.906906]
[1736141460579,0.3298791,99800.0,99799.0,1.906906]
[1736141461867,0.14974452,99800.0,99799.0,1.906906]
[1736141468279,0.14974452,99800.0,99799.0,1.8618]
[1736141468577,0.19484952,99800.0,99799.0,0.001]
[1736141469080,0.33139804,99800.0,99799.0,1.501]
[1736141469377,0.28629304,99800.0,99799.0,1.501]
[1736141470579,0.14974452,99800.0,99799.0,1.501]
[1736141471575,0.0639092,99800.0,99799.0,1.501]
[1736141472177,0.01516468,99800.0,99799.0,1.501]
[1736141473381,0.20058967,99800.0,99799.0,1.501]
[1736141474170,0.23628967,99800.0,99799.0,1.501]
[1736141474385,0.27338967,99800.0,99799.0,1.501]
[1736141474773,0.28338967,99800.0,99799.0,0.001]
[1736141475479,0.27338967,99800.0,99787.0,1.5]
[1736141475680,0.04511,99791.0,99787.0,1.5]
[1736141476872,0.09647318,99797.0,99787.0,1.501]
[1736141477476,0.18023034,99788.0,99787.0,1.501]
[1736141478584,0.18023034,99789.0,99787.0,1.546111]
[1736141478774,0.001,99788.0,99787.0,1.546111]
[1736141479174,0.001,99788.0,99787.0,1.545111]
[1736141479381,0.001,99788.0,99787.0,1.546111]
[1736141479781,0.001,99788.0,99787.0,1.5]
[1736141479980,0.05074452,99788.0,99787.0,1.501]
[1736141480381,0.04974452,99788.0,99787.0,1.501]
[1736141481381,0.05074452,99788.0,99787.0,1.501]
[1736141484193,0.18755475,99788.0,99787.0,1.501]
[1736141485281,0.18755475,99788.0,99787.0,0.001]
[1736141485695,0.05074452,99788.0,99787.0,0.001]
[1736141486781,0.002,99788.0,99787.0,0.001]
[1736141488383,0.05074452,99788.0,99787.0,0.001]
[1736141491188,0.05074452,99788.0,99787.0,1.501]
[1736141493590,0.23088494,99788.0,99787.0,1.501]
[1736141493791,0.23088494,99788.0,99787.0,0.001]
[1736141495995,0.05074452,99788.0,99787.0,0.001]
[1736141497799,0.002,99788.0,99787.0,0.001]
[1736141498993,0.18776166,99788.0,99787.0,0.001]
[1736141504003,0.10123123,99788.0,99787.0,0.001]
[1736141504402,0.10123123,99788.0,99787.0,0.1125]
[1736141505004,0.10123123,99788.0,99787.0,0.0743]
[1736141506003,0.04874452,99788.0,99787.0,0.0743]
[1736141506200,0.04874452,99788.0,99787.0,0.0376]
[1736141507095,0.04874452,99788.0,99787.0,0.001]
[1736141514415,0.18377926,99788.0,99787.0,0.001]
[1736141517511,0.04874452,99788.0,99787.0,0.001]
[1736141519118,0.045111,99789.0,99787.0,0.001]
[1736141519509,0.02321215,99795.0,99787.0,0.001]
[1736141519710,0.18379136,99799.0,99794.0,0.3608]
[1736141519910,0.18379136,99799.0,99795.0,0.0743]
[1736141520416,0.01416468,99800.0,99795.0,0.0743]
[1736141520914,0.04343787,99800.0,99795.0,0.0743]
[1736141521119,0.01416468,99800.0,99796.0,1.5]
[1736141521612,0.01416468,99800.0,99799.0,0.045106]
[1736141522212,0.21051015,99810.0,99806.0,0.045103]
[1736141522513,0.21051015,99810.0,99807.0,0.0367]
[1736141523222,0.3608,99813.0,99807.0,0.0367]
[1736141523519,0.39024035,99813.0,99807.0,0.0367]
[1736141523817,0.39024035,99813.0,99807.0,0.0387]
[1736141524519,0.18025213,99809.0,99807.0,0.0387]
[1736141526011,0.04874163,99812.0,99810.0,0.045101]
[1736141527121,0.04874163,99812.0,99810.0,0.046101]
[1736141527921,0.04874163,99812.0,99811.0,1.5]
[1736141530217,0.02079499,99820.0,99811.0,1.5]
[1736141530419,0.02079499,99820.0,99812.0,0.0735]
[1736141532215,0.045098,99817.0,99812.0,0.0735]
[1736141532521,0.045098,99817.0,99812.0,0.0745]
[1736141533336,0.045098,99817.0,99813.0,1.5]
[1736141534119,0.02079499,99820.0,99813.0,1.5]
[1736141534423,0.02079499,99820.0,99812.0,0.001]
[1736141534424,0.045099,99814.0,99812.0,0.001]
[1736141534620,0.3608,99813.0,99812.0,0.001]
[1736141535022,0.27849502,99813.0,99812.0,0.001]
[1736141535529,0.045101,99811.0,99797.0,0.045107]
[1736141535720,0.045101,99811.0,99803.0,1.5]
[1736141537322,0.17990808,99810.0,99803.0,1.5]
[1736141539019,0.17990808,99810.0,99803.0,1.501]
[1736141539429,0.17990808,99810.0,99803.0,1.5]
[1736141539725,0.17990808,99810.0,99803.0,1.501]
[1736141540126,0.045102,99809.0,99803.0,1.501]
[1736141540428,0.22501008,99809.0,99803.0,1.501]
[1736141542123,0.045102,99809.0,99803.0,1.501]
[1736141543431,0.22501008,99809.0,99803.0,1.501]
[1736141544522,0.17990808,99809.0,99803.0,1.501]
[1736141544726,0.17990808,99804.0,99803.0,1.501]
[1736141544924,0.04511,99790.0,99786.0,0.3608]
[1736141545423,0.04511,99790.0,99787.0,1.5]
[1736141545624,0.06332322,99800.0,99787.0,1.5]
[1736141545625,0.0371,99799.0,99787.0,1.5]
[1736141545829,0.045106,99798.0,99787.0,1.5]
[1736141546129,0.045106,99798.0,99788.0,0.06332322]
[1736141546130,0.04874993,99789.0,99788.0,0.06332322]
[1736141546322,0.04874993,99789.0,99787.0,1.5]
[1736141547530,0.045108,99796.0,99787.0,1.5]
[1736141547826,0.045108,99795.0,99787.0,1.5]
[1736141548525,0.001,99789.0,99787.0,1.5]
[1736141548921,0.07094538,99795.0,99787.0,1.5]
[1736141549124,0.04874993,99794.0,99787.0,1.5]
[1736141549322,0.18235477,99794.0,99787.0,1.5]
[1736141549730,0.001,99789.0,99787.0,1.5]
[1736141550523,0.22886587,99788.0,99787.0,1.5]
[1736141552130,0.04874993,99788.0,99787.0,1.5]
[1736141553736,0.22886587,99794.0,99787.0,1.5]
[1736141555437,0.04874993,99794.0,99787.0,1.5]
[1736141559841,0.18011594,99793.0,99787.0,1.5]
[1736141564052,0.18011594,99790.0,99787.0,1.5]
[1736141564250,0.18011594,99790.0,99786.0,0.405912]
[1736141564758,0.10030343,99790.0,99786.0,1.905912]
[1736141565654,0.04874993,99789.0,99786.0,1.905912]
[1736141566655,0.04874993,99789.0,99786.0,1.8608]
[1736141566956,0.09385793,99794.0,99786.0,1.8608]
[1736141567753,0.09385793,99794.0,99786.0,1.5]
[1736141568664,0.04874993,99793.0,99786.0,1.5]
[1736141569256,0.045109,99792.0,99786.0,1.5]
[1736141571264,0.44668656,99800.0,99785.0,0.3608]
[1736141571265,0.04874993,99791.0,99785.0,0.3608]
[1736141571559,0.045112,99786.0,99785.0,0.3608]
[1736141571952,0.08964993,99791.0,99785.0,0.3608]
[1736141572157,0.04511,99790.0,99785.0,0.3608]
[1736141572361,0.04874993,99791.0,99785.0,0.3608]
[1736141572568,0.04874993,99795.0,99785.0,0.3608]
[1736141573463,0.09385793,99795.0,99785.0,0.3608]
[1736141573963,0.225294,99795.0,99785.0,0.3608]
[1736141574355,0.045108,99794.0,99785.0,0.3608]
[1736141575360,0.180186,99793.0,99785.0,0.3608]
[1736141576263,0.225295,99793.0,99785.0,0.3608]
[1736141577351,0.045109,99792.0,99786.0,1.5]
[1736141578264,0.180186,99792.0,99786.0,1.5]
[1736141578460,0.045112,99786.0,99785.0,0.3608]
[1736141579661,0.09386193,99786.0,99785.0,0.3608]
[1736141581566,0.11668445,99786.0,99785.0,0.3608]
[1736141586275,0.12668445,99786.0,99785.0,0.3608]
[1736141589475,0.2582659,99786.0,99785.0,0.3608]
[1736141595983,0.17963746,99786.0,99785.0,0.3608]
[1736141597272,0.16963746,99786.0,99785.0,0.3608]
[1736141597585,0.16963746,99786.0,99785.0,0.405912]
[1736141598377,0.03805601,99786.0,99785.0,0.405912]
[1736141598575,0.03805601,99786.0,99785.0,0.3608]
[1736141600080,0.02282252,99786.0,99785.0,0.3608]
[1736141600274,0.18037459,99789.0,99785.0,0.3608]
[1736141601181,0.18037459,99789.0,99786.0,1.5]
[1736141601885,0.18037459,99790.0,99786.0,1.5]
[1736141603183,0.22548459,99790.0,99785.0,0.3608]
[1736141603480,0.18037459,99789.0,99785.0,0.3608]
[1736141606695,0.18037459,99789.0,99788.0,0.3608]
[1736141606876,0.02013753,99792.0,99791.0,0.04511]
[1736141607183,0.045107,99796.0,99788.0,0.3608]
[1736141607370,0.045107,99796.0,99789.0,1.5]
[1736141607775,0.15031785,99793.0,99791.0,0.1788547]
[1736141608476,0.19542685,99793.0,99791.0,0.1788547]
[1736141609087,0.045109,99793.0,99789.0,0.001]
[1736141609986,0.045109,99792.0,99788.0,0.3608]
[1736141611286,0.12604165,99791.0,99788.0,0.3608]
[1736141612777,0.17479284,99791.0,99788.0,0.3608]
[1736141613181,0.21990284,99791.0,99788.0,0.3608]
[1736141614280,0.17479284,99790.0,99788.0,0.3608]
[1736141615883,0.21990284,99790.0,99788.0,0.3608]
[1736141616775,0.17479284,99789.0,99788.0,0.3608]
[1736141617675,0.21051015,99800.0,99798.0,0.045106]
[1736141617883,0.21051015,99800.0,99799.0,0.3608]
[1736141618189,0.21051015,99800.0,99799.0,1.8608]
[1736141618590,0.08551015,99800.0,99799.0,1.8608]
[1736141619778,0.01934029,99817.0,99799.0,1.8608]
[1736141619985,0.01934029,99817.0,99813.0,0.045099]
[1736141620781,0.01934029,99817.0,99810.0,0.3608]
[1736141621588,0.01934029,99817.0,99813.0,0.001]
[1736141622092,0.38014029,99817.0,99810.0,0.001]
[1736141622291,0.0451,99811.0,99810.0,0.001]
[1736141623695,0.0451,99811.0,99798.0,0.045106]
[1736141624190,0.0451,99811.0,99810.0,0.001]
[1736141624783,0.0451,99811.0,99799.0,1.8618]
[1736141625284,0.0451,99811.0,99810.0,0.001]
[1736141625988,0.00665024,99814.0,99810.0,0.001]
[1736141626790,0.00665024,99814.0,99799.0,1.8608]
[1736141627086,0.0451,99811.0,99799.0,1.8618]
[1736141627290,0.0451,99811.0,99800.0,0.045105]
[1736141627688,0.0451,99811.0,99810.0,0.001]
[1736141628085,0.0451,99811.0,99800.0,0.14154044]
[1736141628291,0.15005252,99804.0,99800.0,0.14154044]
[1736141628492,0.15005252,99804.0,99800.0,0.045105]
[1736141629398,0.15005252,99802.0,99800.0,0.045105]
[1736141630395,0.15005252,99802.0,99800.0,0.046105]
[1736141630787,0.15005252,99804.0,99800.0,0.045105]
[1736141630995,0.15005252,99804.0,99800.0,0.046105]
[1736141631894,0.15005252,99804.0,99800.0,0.045105]
[1736141632096,0.15005252,99804.0,99800.0,0.046105]
[1736141632290,0.15005252,99803.0,99800.0,0.046105]
[1736141633604,0.15005252,99801.0,99800.0,0.046105]
[1736141634694,0.18006303,99806.0,99800.0,0.001]
[1736141634998,0.18006303,99806.0,99805.0,0.045103]
[1736141637500,0.18006303,99806.0,99805.0,0.046103]
[1736141638396,0.22880686,99808.0,99805.0,0.046103]
[1736141638604,0.22880686,99808.0,99805.0,0.001]
[1736141639301,0.18006303,99806.0,99805.0,0.001]
[1736141639695,0.18006303,99806.0,99805.0,0.046103]
[1736141640603,0.04874383,99808.0,99805.0,1.501]
[1736141640794,0.04874383,99808.0,99807.0,0.045102]
[1736141641707,0.04874383,99808.0,99807.0,0.405902]
[1736141642207,0.00544383,99808.0,99807.0,0.705902]
[1736141642408,0.00544383,99808.0,99807.0,2.205902]
[1736141642793,0.00544383,99808.0,99807.0,2.206902]
[1736141643508,0.02079499,99820.0,99817.0,0.045098]
[1736141643509,0.15008242,99818.0,99817.0,0.045098]
[1736141643802,0.15008242,99818.0,99817.0,0.405898]
[1736141644204,0.15008242,99818.0,99817.0,1.905898]
[1736141644707,0.02079499,99820.0,99819.0,0.045097]
[1736141645602,0.02079499,99820.0,99819.0,1.545097]
[1736141646406,0.02079499,99820.0,99819.0,1.546097]
[1736141647506,0.15008242,99831.0,99821.0,0.045096]
[1736141647712,0.15008242,99831.0,99830.0,0.405892]
[1736141648513,0.15008242,99832.0,99830.0,0.405892]
[1736141649112,0.15008242,99832.0,99831.0,0.0417]
[1736141649608,0.15008242,99832.0,99831.0,0.3692]
[1736141650110,0.15008242,99839.0,99838.0,0.045088]
[1736141650300,0.15008242,99839.0,99838.0,0.405888]
[1736141650508,0.15008242,99839.0,99838.0,0.705888]
[1736141650703,0.12724409,99839.0,99838.0,0.705888]
[1736141651016,0.12724409,99839.0,99838.0,0.405888]
[1736141651312,0.12724409,99839.0,99838.0,1.905888]
[1736141651501,0.045079,99859.0,99838.0,1.8608]
[1736141651701,0.045079,99859.0,99850.0,0.045083]
[1736141651907,0.01786956,99860.0,99850.0,0.045083]
[1736141652306,0.01786956,99860.0,99850.0,1.545083]
[1736141652907,0.06607894,99851.0,99850.0,1.545083]
[1736141653303,0.06607894,99851.0,99850.0,1.546083]
[1736141655917,0.15576286,99851.0,99850.0,1.546083]
[1736141657012,0.11817686,99851.0,99850.0,1.56266806]
[1736141657214,0.02849294,99851.0,99850.0,1.56266806]
[1736141660021,0.08968392,99866.0,99865.0,0.045076]
[1736141660616,0.08968392,99866.0,99864.0,0.3608]
[1736141660617,0.0384,99877.0,99870.0,0.045074]
[1736141661515,0.0384,99877.0,99871.0,1.5]
[1736141661910,0.0384,99877.0,99872.0,0.045073]
[1736141662110,0.08955927,99876.0,99872.0,0.045073]
[1736141662519,0.08955927,99876.0,99873.0,0.045072]
[1736141662920,0.08955927,99876.0,99871.0,1.5]
[1736141663521,0.08955927,99876.0,99868.0,0.045075]
[1736141663522,0.0384,99877.0,99868.0,0.045075]
[1736141664023,0.0384,99877.0,99869.0,1.5]
[1736141665720,0.0384,99877.0,99870.0,0.045074]
[1736141666223,0.0384,99877.0,99869.0,1.5]
[1736141666818,0.3608,99870.0,99869.0,1.5]
[1736141667025,0.3808,99870.0,99850.0,0.09786689]
[1736141667223,0.3808,99870.0,99851.0,0.07173684]
[1736141667224,0.3608,99855.0,99851.0,0.07173684]
[1736141667416,0.3608,99855.0,99852.0,1.5]
[1736141668226,0.08962189,99854.0,99852.0,1.5]
[1736141668419,0.08962189,99854.0,99852.0,1.545082]
[1736141669126,0.08962189,99854.0,99853.0,0.3608]
[1736141669526,0.01659487,99866.0,99853.0,0.3608]
[1736141669527,0.01659487,99866.0,99854.0,0.045081]
[1736141669728,0.0764,99869.0,99859.0,0.045078]
[1736141670227,0.0764,99869.0,99856.0,0.09636477]
[1736141670424,0.0372,99868.0,99861.0,0.3608]
[1736141670625,0.0372,99868.0,99863.0,0.045077]
[1736141670927,0.0372,99868.0,99864.0,0.045076]
[1736141671628,0.0372,99868.0,99858.0,0.045079]
[1736141671925,0.0372,99868.0,99858.0,0.14144377]
[1736141672140,0.0372,99868.0,99861.0,0.045077]
[1736141672329,0.0372,99868.0,99863.0,0.045077]
[1736141672519,0.0372,99868.0,99865.0,0.045076]
[1736141672714,0.0382,99868.0,99865.0,0.045076]
[1736141672930,0.0382,99868.0,99866.0,1.545075]
[1736141677220,0.0382,99868.0,99866.0,1.5]
[1736141680831,0.001,99868.0,99867.0,0.045075]
[1736141681431,0.001,99868.0,99867.0,1.545075]
[1736141682031,0.001,99868.0,99867.0,1.5]
[1736141682328,0.0405,99872.0,99867.0,1.5]
[1736141682531,0.04971474,99868.0,99867.0,1.5]
[1736141682928,0.00810351,99872.0,99867.0,1.5]
[1736141683121,0.02306199,99872.0,99867.0,1.5]
[1736141683325,0.001,99868.0,99867.0,1.5]
[1736141683726,0.001,99868.0,99867.0,1.545075]
[1736141685031,0.0407,99871.0,99870.0,0.045074]
[1736141685735,0.0407,99871.0,99867.0,1.5]
[1736141685937,0.001,99868.0,99867.0,1.5]
[1736141686528,0.0407,99871.0,99867.0,1.5]
[1736141686726,0.0417,99871.0,99868.0,0.045075]
[1736141687836,0.18013071,99869.0,99868.0,0.045075]
[1736141689041,0.0407,99871.0,99868.0,0.045075]
[1736141689231,0.001,99869.0,99868.0,0.045075]
[1736141689840,0.001,99869.0,99867.0,1.5]
[1736141691025,0.0407,99871.0,99867.0,1.5]
[1736141691224,0.0417,99871.0,99867.0,1.5]
[1736141692434,0.0407,99871.0,99867.0,1.5]
[1736141692633,0.001,99869.0,99867.0,1.5]
[1736141693339,0.045075,99868.0,99857.0,0.045079]
[1736141693536,0.045075,99868.0,99858.0,0.045079]
[1736141693836,0.045075,99868.0,99859.0,1.545079]
[1736141695233,0.001,99868.0,99859.0,1.545079]
[1736141695435,0.045075,99867.0,99859.0,1.545079]
[1736141696128,0.045075,99867.0,99859.0,1.5]
[1736141696330,0.045075,99867.0,99860.0,0.045078]
[1736141696940,0.045075,99867.0,99863.0,0.045077]
[1736141697641,0.11214361,99866.0,99863.0,0.045077]
[1736141698143,0.11214361,99866.0,99859.0,1.5]
[1736141698442,0.11214361,99866.0,99864.0,0.045076]
[1736141699038,0.1802569,99865.0,99864.0,0.045076]
[1736141699941,0.1802569,99866.0,99864.0,0.045076]
[1736141701637,0.16087495,99870.0,99859.0,1.5]
[1736141701838,0.16087495,99870.0,99867.0,0.045075]
[1736141702038,0.16087495,99870.0,99868.0,0.045074]
[1736141703139,0.04971509,99870.0,99868.0,0.045074]
[1736141704443,0.001,99870.0,99868.0,0.045074]
[1736141705537,0.04871509,99869.0,99868.0,0.045074]
[1736141707540,0.04971509,99869.0,99868.0,0.045074]
[1736141707942,0.04971509,99869.0,99868.0,0.405874]
[1736141708345,0.16186269,99869.0,99868.0,1.905874]
[1736141709746,0.001,99869.0,99868.0,1.905874]
[1736141710535,0.001,99869.0,99868.0,1.545074]
[1736141710738,0.001,99869.0,99868.0,0.045074]
[1736141711245,0.00095,99869.0,99868.0,0.045074]
[1736141712338,0.04965994,99869.0,99868.0,0.045074]
[1736141713843,0.04870994,99869.0,99868.0,0.045074]
[1736141714042,0.04970994,99869.0,99868.0,0.045074]
[1736141714651,0.18024385,99872.0,99868.0,1.5]
[1736141714847,0.18024385,99872.0,99869.0,0.045074]
[1736141714848,0.045074,99871.0,99869.0,0.045074]
[1736141715051,0.045024,99871.0,99869.0,0.045074]
[1736141715642,0.18024385,99872.0,99869.0,0.045074]
[1736141716055,0.18024385,99872.0,99871.0,0.045073]
[1736141716548,0.18024385,99873.0,99871.0,0.045073]
[1736141717052,0.001,99872.0,99871.0,0.045073]
[1736141717653,0.18024385,99873.0,99871.0,0.045073]
[1736141717856,0.18124385,99873.0,99871.0,0.045073]
[1736141718152,0.001,99873.0,99871.0,0.045073]
[1736141720049,0.001,99872.0,99869.0,0.045074]
[1736141720254,0.001,99872.0,99871.0,0.045073]
[1736141721345,0.18024385,99874.0,99870.0,0.3608]
[1736141721541,0.001,99873.0,99871.0,0.045073]
[1736141721949,0.18024385,99874.0,99873.0,0.045073]
[1736141722347,0.18024385,99874.0,99873.0,0.086073]
[1736141722548,0.3608,99884.0,99877.0,0.045071]
[1736141722549,0.18024385,99878.0,99877.0,0.045071]
[1736141723151,0.18024385,99878.0,99870.0,0.3608]
[1736141723343,0.18024385,99878.0,99876.0,0.045071]
[1736141723755,0.18024385,99878.0,99877.0,1.5]
[1736141723954,0.3608,99884.0,99877.0,1.5]
[1736141724255,0.3608,99884.0,99878.0,0.04507]
[1736141725447,0.18024385,99883.0,99878.0,0.04507]
[1736141728047,0.54104385,99884.0,99878.0,0.04507]
[1736141728355,0.54248385,99884.0,99878.0,0.04507]
[1736141729453,0.36224,99884.0,99878.0,0.04507]
[1736141730962,0.0487089,99879.0,99878.0,0.04507]
[1736141732957,0.0487089,99879.0,99877.0,1.5]
[1736141732958,0.4095089,99879.0,99877.0,0.045071]
[1736141733659,0.4095089,99879.0,99878.0,1.5]
[1736141734156,0.3608,99879.0,99878.0,1.5]
[1736141734958,0.3608,99879.0,99877.0,0.045071]
[1736141735163,0.37456798,99879.0,99877.0,0.045071]
[1736141735457,0.3608,99879.0,99877.0,0.045071]
[1736141735857,0.40950899,99879.0,99877.0,0.045071]
[1736141737364,0.15939265,99878.0,99877.0,0.045071]
[1736141738459,0.04870899,99878.0,99877.0,0.045071]
[1736141739866,0.18022638,99878.0,99877.0,0.045071]
[1736141741170,0.22893537,99879.0,99877.0,0.045071]
[1736141743062,0.22893537,99879.0,99871.0,1.5]
[1736141743264,0.0411,99878.0,99871.0,1.5]
[1736141744763,0.17783734,99885.0,99871.0,1.8608]
[1736141745061,0.17783734,99885.0,99872.0,0.045073]
[1736141745062,0.18024635,99875.0,99872.0,0.045073]
[1736141745271,0.18024635,99875.0,99873.0,0.045072]
[1736141745963,0.045068,99883.0,99873.0,0.045072]
[1736141746968,0.10491421,99882.0,99873.0,0.045072]
[1736141747771,0.10491421,99882.0,99873.0,0.044072]
[1736141747973,0.10491421,99882.0,99871.0,1.8608]
[1736141747974,0.04507,99880.0,99871.0,1.8608]
[1736141749963,0.04507,99879.0,99871.0,1.8608]
[1736141751271,0.04507,99879.0,99871.0,0.3608]
[1736141751467,0.04507,99879.0,99870.0,0.06322782]
[1736141751676,0.04507,99879.0,99870.0,1.56322782]
[1736141752576,0.04507,99879.0,99870.0,1.60830182]
[1736141754071,0.10498432,99878.0,99871.0,0.045073]
[1736141754879,0.10498432,99878.0,99873.0,0.045072]
[1736141755283,0.10498432,99877.0,99873.0,0.045072]
[1736141755974,0.04507,99879.0,99873.0,0.045072]
[1736141757482,0.10495778,99878.0,99873.0,0.045072]
[1736141757781,0.10495778,99878.0,99874.0,0.045072]
[1736141758880,0.06322782,99881.0,99874.0,0.045072]
[1736141759471,0.3608,99877.0,99870.0,1.5]
[1736141759675,0.045072,99875.0,99869.0,0.045074]
[1736141759878,0.3608,99877.0,99869.0,0.044974]
[1736141760274,0.3608,99877.0,99869.0,0.044874]
[1736141760982,0.3608,99877.0,99862.0,1.5]
[1736141761179,0.3608,99877.0,99870.0,0.045074]
[1736141761379,0.3608,99877.0,99871.0,0.044973]
[1736141761686,0.15367212,99876.0,99871.0,0.044973]
[1736141762480,0.15367212,99876.0,99862.0,1.5]
[1736141763180,0.04871255,99876.0,99862.0,1.5]
[1736141764088,0.04871255,99876.0,99871.0,0.045073]
[1736141764483,0.3608,99874.0,99871.0,0.045073]
[1736141765183,0.3608,99874.0,99872.0,0.045073]
[1736141765371,0.15365812,99880.0,99872.0,0.045073]
[1736141765572,0.15365812,99880.0,99873.0,1.5]
[1736141765980,0.10829682,99881.0,99873.0,1.5]
[1736141766586,0.3608,99874.0,99873.0,1.5]
[1736141767279,0.3608,99874.0,99873.0,1.4999]
[1736141767675,0.3608,99874.0,99872.0,0.045073]
[1736141768084,0.045079,99860.0,99853.0,0.045081]
[1736141768288,0.045081,99854.0,99853.0,0.1788547]
[1736141768488,0.045081,99854.0,99835.0,0.35770941]
[1736141768489,0.045089,99836.0,99835.0,0.35770941]
[1736141769187,0.045089,99836.0,99835.0,0.35760941]
[1736141769788,0.3608,99839.0,99835.0,0.35950941]
[1736141769974,0.3608,99839.0,99837.0,0.045088]
[1736141770178,0.37402804,99839.0,99837.0,0.045088]
[1736141770489,0.37402804,99839.0,99837.0,0.044988]
[1736141771192,0.04872961,99838.0,99837.0,0.044888]
[1736141771991,0.04872961,99838.0,99837.0,0.044688]
[1736141772586,0.22844391,99838.0,99837.0,0.044688]
[1736141772887,0.22944391,99838.0,99837.0,1.544688]
[1736141773098,0.23244391,99838.0,99837.0,1.544688]
[1736141773592,0.27453191,99838.0,99837.0,1.5]
[1736141773790,0.23044391,99838.0,99837.0,1.4999]
[1736141773985,0.05072961,99838.0,99837.0,1.4999]
[1736141774791,0.05072961,99838.0,99837.0,1.5841]
[1736141774992,0.04972961,99838.0,99837.0,1.5841]
[1736141775380,0.04972961,99838.0,99837.0,1.584]
[1736141775899,0.05172961,99838.0,99837.0,1.5839]
[1736141776393,0.05172961,99838.0,99837.0,1.5838]
[1736141776984,0.05172961,99838.0,99837.0,1.5837]
[1736141777689,0.05172961,99838.0,99837.0,1.5836]
[1736141778195,0.05172961,99838.0,99837.0,1.5835]